fUSD/lending_fUSD_20240815
["ID","MTS","AMOUNT","RATE_DAILY","PERIOD"]
[335022430,1723751443926,-22397.49178822,0.00010998,2]
[335022431,1723751443938,-11734.37836584,0.00010998,2]
[335022432,1723751443950,-2499.6238,0.00010998,2]
[335022433,1723751443961,-10740.90292004,0.00010998,2]
[335022434,1723751443970,-188.75297818,0.00010999,2]
[335022435,1723751443980,-1031.54405097,0.00010999,3]
[335022436,1723751443989,-1031.54405098,0.00010999,3]
[335022437,1723751443999,-1002.37165507,0.00010999,2]
[335022438,1723751444008,-230.08927246,0.00010999,2]
[335022439,1723751444017,-1473.0,0.00010999,2]
[335022440,1723751444026,-49302.93468788,0.00011,2]
[335022441,1723751444037,-33724.11572845,0.00011,2]
[335022442,1723751444048,-1745.585,0.00011,2]
[335022443,1723751444059,-4219.84062475,0.00011,2]
[335022444,1723751444070,-514.96451937,0.00011,2]
[335022445,1723751444081,-1116.17015388,0.00011,2]
[335022446,1723751444092,-851.90336111,0.00011,2]
[335022457,1723751445660,-88256.46729561,0.00011,2]
[335022458,1723751445672,-849.13398569,0.00011,2]
[335022459,1723751445683,-779.46259794,0.00011,2]
[335022460,1723751445715,-2936.12748951,0.00011,2]
[335022461,1723751445727,-675.575,0.00011,2]
[335022462,1723751445773,-912.34615092,0.00011,2]
[335022463,1723751445784,-1012.62705492,0.00011,2]
[335022464,1723751445796,-2840.0,0.00011,2]
[335022465,1723751445807,-1506.36110753,0.00011,2]
[335022466,1723751445830,-468.80806022,0.00011,2]
[335022467,1723751445843,-719.95798759,0.00011,2]
[335022468,1723751445854,-1734.84626364,0.00011,2]
[335022469,1723751445870,-733.0755735,0.00011,2]
[335022470,1723751445881,-17412.24119828,0.00011,2]
[335022471,1723751445891,-3694.55916163,0.00011,2]
[335022472,1723751445903,-286.68669669,0.00011,2]
[335022473,1723751445914,-856.20926424,0.00011,2]
[335022474,1723751445965,-747.40697802,0.00011,2]
[335022475,1723751445980,-505.14,0.00011,2]
[335022476,1723751445993,-292.064,0.00011,2]
[335022477,1723751446008,-757.76178964,0.00011,2]
[335022478,1723751446022,-1638.75847345,0.00011,2]
[335022479,1723751446039,-2448.9903007,0.00011,2]
[335022480,1723751446053,-1071.21611861,0.00011,2]
[335022481,1723751446068,-450.0,0.00011,2]
[335022487,1723751476123,7683.65,9.739e-05,2]
[335022498,1723751553570,255.46465444,8.219e-05,2]
[335022499,1723751553597,403.94534556,8.219e-05,2]
[335022509,1723751940218,619.94,9.978e-05,2]
[335022510,1723752005018,154.66,9.972e-05,2]
[335022511,1723752045794,536.67,9.934e-05,2]
[335022512,1723752140053,697.85,8.219e-05,2]
[335022513,1723752149513,13732.61,9.91e-05,2]
[335022514,1723752154040,2684.4,9.903e-05,2]
[335022515,1723752273450,409.11,9.978e-05,2]
[335022516,1723752309669,1000.0,9.929e-05,2]
[335022532,1723752386568,223.12,9.95e-05,2]
[335022535,1723752430880,250.0,9.968e-05,2]
[335022536,1723752501001,-351.0,9.999e-05,2]
[335022538,1723752501032,-550.0,0.0001,2]
[335022541,1723752501061,-155.0,0.00010009,2]
[335022543,1723752501090,-155.0,0.00010026,2]
[335022545,1723752501120,-172.82,0.00010351,2]
[335022547,1723752501148,-1847.78914153,0.00010471,2]
[335022549,1723752501190,-1118.84647034,0.00010471,2]
[335022551,1723752501223,-728.94267119,0.00010471,2]
[335022552,1723752501255,-155.0,0.00010471,2]
[335022553,1723752501286,-697.85,0.00010472,2]
[335022554,1723752501316,-300.0,0.00010484,2]
[335022555,1723752501345,-2468.66294068,0.00010485,2]
[335022556,1723752501379,-2230.40950432,0.00010485,2]
[335022557,1723752501409,-230.08927246,0.00010505,2]
[335022558,1723752501447,-155.13955596,0.00010505,2]
[335022559,1723752501476,-748.35140455,0.00010699,2]
[335022573,1723752576111,-154.66,0.00010156,2]
[335022574,1723752576140,-100.80465445,0.00010201,2]
[335022575,1723752622420,665.18,8.219e-05,2]
[335022593,1723752631890,-167.52534555,0.00010201,2]
[335022594,1723752631900,-168.42381542,0.00010201,2]
[335022595,1723752631910,-170.68529892,0.00010201,2]
[335022596,1723752631919,-636.84554011,0.00010474,2]
[335022597,1723752632050,-28.33445989,0.00010474,2]
[335022598,1723752632059,-760.3907085,0.00010505,2]
[335022599,1723752632069,-150.0,0.00010698,2]
[335022600,1723752632078,-300.0,0.00010698,2]
[335022601,1723752632087,-300.0,0.00010698,2]
[335022602,1723752632097,-10115.08,0.00010699,2]
[335022603,1723752632107,-150.99,0.00010699,2]
[335022604,1723752632116,-18054.39,0.00010699,2]
[335022605,1723752632125,-162.73988333,0.00010699,2]
[335022606,1723752632134,-3028.0524,0.000108,2]
[335022607,1723752632143,-499.99,0.000108,2]
[335022608,1723752632153,-245.34,0.00010865,2]
[335022610,1723752632162,-34619.9419,0.0001089,2]
[335022612,1723752632181,-7500.0,0.00010898,2]
[335022614,1723752632191,-161.27416422,0.00010899,2]
[335022616,1723752632200,-161.27416418,0.00010899,2]
[335022618,1723752632210,-161.27416418,0.00010899,2]
[335022620,1723752632220,-161.27416418,0.00010899,2]
[335022622,1723752632229,-161.27416418,0.00010899,2]
[335022623,1723752632239,-59185.5932,0.000109,2]
[335022624,1723752632250,-3520.9278,0.000109,2]
[335022625,1723752632261,-475.1075,0.000109,2]
[335022626,1723752632271,-61826.1902,0.000109,2]
[335022627,1723752632526,-5723.545,0.000109,2]
[335022628,1723752632535,-3000.0,0.000109,2]
[335022629,1723752632545,-1007.0,0.000109,2]
[335022630,1723752632555,-1000.0,0.000109,2]
[335022631,1723752632565,-1000.0,0.000109,2]
[335022632,1723752632576,-171.85912976,0.000109,2]
[335022633,1723752632587,-167.16366305,0.000109,2]
[335022634,1723752632597,-161.27416418,0.000109,2]
[335022635,1723752632607,-201.78608962,0.000109,2]
[335022636,1723752632617,-303.90469939,0.00010949,2]
[335022637,1723752632627,-7014.23,0.00010959,2]
[335022638,1723752632637,-150.0,0.00010959,2]
[335022639,1723752632647,-250.0,0.00010959,2]
[335022640,1723752632656,-2000.0,0.00010959,2]
[335022641,1723752632667,-893.38,0.00010959,2]
[335022642,1723752632678,-169.70524549,0.00010997,2]
[335022643,1723752632688,-339.41049098,0.00010997,2]
[335022644,1723752632698,-16042.11234229,0.00010998,2]
[335022651,1723752637897,-2598.58139331,0.00010998,2]
[335022652,1723752638008,-638.24848553,0.00010998,2]
[335022653,1723752638019,-407.86354197,0.00010998,2]
[335022654,1723752638028,-3528.18257321,0.00010998,2]
[335022655,1723752638041,-313.147835,0.00010998,2]
[335022656,1723752638064,-5016.86114069,0.00010998,2]
[335022657,1723752638073,-4072.5129746,0.00010998,2]
[335022658,1723752638083,-150.01,0.00010999,2]
[335022659,1723752638092,-1629.06500109,0.00010999,3]
[335022660,1723752638101,-500.0,0.00010999,2]
[335022661,1723752638111,-642.22536793,0.00010999,2]
[335022662,1723752638121,-500.0,0.00010999,2]
[335022663,1723752638131,-500.0,0.00010999,2]
[335022664,1723752638140,-500.0,0.00010999,2]
[335022665,1723752638149,-519.40523966,0.00010999,2]
[335022666,1723752638158,-500.0,0.00010999,2]
[335022667,1723752638167,-500.0,0.00010999,2]
[335022668,1723752638176,-500.0,0.00010999,2]
[335022669,1723752638186,-600.0,0.00010999,2]
[335022670,1723752638195,-183.23314245,0.00010999,2]
[335022671,1723752638204,-500.0,0.00010999,2]
[335022672,1723752638214,-500.0,0.00010999,2]
[335022673,1723752638223,-500.0,0.00010999,2]
[335022674,1723752638232,-500.0,0.00010999,2]
[335022675,1723752638241,-500.0,0.00010999,2]
[335022676,1723752638254,-500.0,0.00010999,2]
[335022677,1723752638263,-500.0,0.00010999,2]
[335022678,1723752638272,-250.0,0.00010999,2]
[335022679,1723752638283,-500.0,0.00010999,2]
[335022681,1723752638294,-500.0,0.00010999,2]
[335022682,1723752638306,-500.0,0.00010999,2]
[335022684,1723752638315,-500.0,0.00010999,2]
[335022686,1723752638326,-500.0,0.00010999,2]
[335022687,1723752638335,-500.0,0.00010999,2]
[335022688,1723752638345,-500.0,0.00010999,2]
[335022689,1723752638353,-500.0,0.00010999,2]
[335022690,1723752638362,-500.0,0.00010999,2]
[335022691,1723752638371,-500.0,0.00010999,2]
[335022692,1723752638381,-500.0,0.00010999,2]
[335022693,1723752638390,-500.0,0.00010999,2]
[335022694,1723752638399,-500.0,0.00010999,2]
[335022695,1723752638408,-500.0,0.00010999,2]
[335022696,1723752638418,-500.0,0.00010999,2]
[335022697,1723752638427,-500.0,0.00010999,2]
[335022698,1723752638437,-500.0,0.00010999,2]
[335022699,1723752638446,-500.0,0.00010999,2]
[335022700,1723752638456,-500.0,0.00010999,2]
[335022701,1723752638465,-500.0,0.00010999,2]
[335022702,1723752638475,-500.0,0.00010999,2]
[335022703,1723752638485,-500.0,0.00010999,2]
[335022704,1723752638495,-500.0,0.00010999,2]
[335022705,1723752638504,-500.0,0.00010999,2]
[335022706,1723752638514,-500.0,0.00010999,2]
[335022707,1723752638524,-500.0,0.00010999,2]
[335022708,1723752638537,-500.0,0.00010999,2]
[335022709,1723752638547,-500.0,0.00010999,2]
[335022710,1723752638557,-500.0,0.00010999,2]
[335022711,1723752638567,-500.0,0.00010999,2]
[335022712,1723752638576,-500.0,0.00010999,2]
[335022713,1723752638586,-203.749599,0.00010999,2]
[335022714,1723752638595,-500.0,0.00010999,2]
[335022715,1723752638609,-500.0,0.00010999,2]
[335022716,1723752638619,-500.0,0.00010999,2]
[335022717,1723752638629,-500.0,0.00010999,2]
[335022718,1723752638638,-500.0,0.00010999,2]
[335022719,1723752638648,-500.0,0.00010999,2]
[335022720,1723752638658,-500.0,0.00010999,2]
[335022721,1723752638668,-500.0,0.00010999,2]
[335022722,1723752638678,-500.0,0.00010999,2]
[335022723,1723752638688,-500.0,0.00010999,2]
[335022724,1723752638697,-500.0,0.00010999,2]
[335022725,1723752638707,-320.0,0.00010999,2]
[335022726,1723752638717,-500.0,0.00010999,2]
[335022727,1723752638726,-500.0,0.00010999,2]
[335022728,1723752638736,-500.0,0.00010999,2]
[335022729,1723752638746,-500.0,0.00010999,2]
[335022730,1723752638756,-500.0,0.00010999,2]
[335022731,1723752638766,-500.0,0.00010999,2]
[335022732,1723752638775,-500.0,0.00010999,2]
[335022733,1723752638787,-500.0,0.00010999,2]
[335022734,1723752638797,-500.0,0.00010999,2]
[335022735,1723752638806,-500.0,0.00010999,2]
[335022736,1723752638816,-500.0,0.00010999,2]
[335022737,1723752638826,-500.0,0.00010999,2]
[335022738,1723752638835,-500.0,0.00010999,2]
[335022739,1723752638845,-500.0,0.00010999,2]
[335022740,1723752638855,-1323.0,0.00011,2]
[335022741,1723752638864,-34133.92505242,0.00011,2]
[335022742,1723752638894,-644104.22540267,0.00011,2]
[335022743,1723752638904,-1000.0,0.00011,2]
[335022744,1723752638913,-1988947.36690318,0.00011,2]
[335022745,1723752638925,-404954.00231383,0.00011,2]
[335022746,1723752638940,-360.18505011,0.00011,2]
[335022748,1723752639829,-550.1564575,0.00011,2]
[335022749,1723752639849,-892.40355142,0.00011,2]
[335022750,1723752639861,-760.32601188,0.00011,2]
[335022751,1723752639907,-600.0,0.00011,2]
[335022752,1723752639921,-759.22170418,0.00011,2]
[335022753,1723752639932,-5029.4305011,0.00011,2]
[335022754,1723752639944,-1224.96970469,0.00011,2]
[335022755,1723752639971,-684.84971964,0.00011,2]
[335022756,1723752639982,-14669.655,0.00011,2]
[335022757,1723752640024,-7659.00000018,0.00011,2]
[335022758,1723752640038,-1243.45574359,0.00011,2]
[335022759,1723752640049,-372.50946649,0.00011,2]
[335022760,1723752640060,-622.14843254,0.00011,2]
[335022761,1723752640078,-194098.66760641,0.00011,2]
[335022762,1723752640136,-6269395.00429383,0.00011,2]
[335022763,1723752640148,-12921.63839813,0.00011,2]
[335022764,1723752640159,-577.54696,0.00011,2]
[335022782,1723752643619,-1236.0,0.00011,2]
[335022784,1723752643629,-834.5206578,0.00011,2]
[335022794,1723752644682,-6258.48242976,0.00011,2]
[335022795,1723752644694,-1805.0,0.00011,2]
[335022796,1723752644706,-4789.57164888,0.00011,2]
[335022797,1723752644717,-69229.38194159,0.00011,2]
[335022798,1723752644728,-457.46955249,0.00011,2]
[335022799,1723752644739,-1777.28742832,0.00011,2]
[335022800,1723752644751,-6950.22205377,0.00011,2]
[335022801,1723752644763,-623.2797952,0.00011,2]
[335022802,1723752644775,-655.16092701,0.00011,2]
[335022803,1723752644786,-1937.75846044,0.00011,2]
[335022804,1723752644796,-253.88923684,0.00011,2]
[335022805,1723752644808,-17268.42652662,0.00011,2]
[335022806,1723752644819,-44424.42554253,0.00011,2]
[335022807,1723752644831,-419.87653924,0.00011,2]
[335022808,1723752644843,-30890.06503049,0.00011,2]
[335022809,1723752644854,-317.58278286,0.00011,2]
[335022810,1723752644866,-834.92804833,0.00011,2]
[335022811,1723752644878,-296.95776435,0.00011,2]
[335022812,1723752644890,-566.62860673,0.00011,2]
[335022813,1723752644901,-7059.3,0.00011,2]
[335022814,1723752644913,-6645.17838912,0.00011,2]
[335022815,1723752644925,-524.26,0.00011,2]
[335022826,1723752645966,-2555.0,0.00011,2]
[335022827,1723752645977,-4681.0,0.00011,2]
[335022828,1723752646022,-4778.87436627,0.00011,2]
[335022829,1723752646169,-23326.81528822,0.00011,2]
[335022830,1723752646182,-164348.95974392,0.00011,2]
[335022831,1723752646204,-362.2774596,0.00011,2]
[335022832,1723752646216,-362162.45363938,0.00011,2]
[335022833,1723752646227,-1214.69466643,0.00011,2]
[335022834,1723752646250,-376.87925389,0.00011,2]
[335022835,1723752646264,-497.59117876,0.00011,2]
[335022837,1723752646275,-2693.82653913,0.00011,2]
[335022839,1723752646289,-1601.37202882,0.00011,2]
[335022840,1723752646322,-1408.1140944,0.00011,2]
[335022842,1723752646335,-638.25,0.00011,2]
[335022844,1723752646346,-279.6363521,0.00011,2]
[335022846,1723752646357,-587.2050527,0.00011,2]
[335022847,1723752646368,-1502.556,0.00011,2]
[335022848,1723752646394,-436.81,0.00011,2]
[335023134,1723752721449,-297.90978804,0.00010097,2]
[335023145,1723752801178,264.569331,9.976e-05,2]
[335023147,1723752875687,1814.4958128,9.976e-05,2]
[335023149,1723752966615,760.3907085,9.943e-05,2]
[335023150,1723753130772,673.85,8.219e-05,2]
[335023151,1723753339897,15705.42788946,9.962e-05,2]
[335023155,1723753543949,695.44,9.97e-05,2]
[335023157,1723753590197,196.56350179,9.918e-05,2]
[335023158,1723753619317,150.0,9.888e-05,2]
[335023159,1723753627944,678.54,8.219e-05,2]
[335023181,1723753686338,3509.85,9.954e-05,2]
[335023188,1723753700525,-196.27,9.995e-05,2]
[335023189,1723753700552,-800.0,0.00010018,2]
[335023190,1723753700578,-5214.4,0.000102,2]
[335023191,1723753700606,-11495.0,0.000102,5]
[335023192,1723753700633,-200.0,0.0001025,2]
[335023193,1723753700660,-172.82,0.0001025,2]
[335023194,1723753700687,-678.54,0.00010473,2]
[335023195,1723753709340,962.69814273,0.00010471,2]
[335023196,1723753720074,-200.0,0.00010536,2]
[335023197,1723753720100,-155.0,0.00010566,2]
[335023198,1723753720128,-1139.61036409,0.0001078,2]
[335023199,1723753720154,-1849.91147986,0.0001078,2]
[335023200,1723753720180,-150.0,0.00010798,2]
[335023201,1723753720207,-499.99,0.00010799,2]
[335023202,1723753720233,-895.76001332,0.00010799,2]
[335023211,1723753752479,-360.0,0.00010194,2]
[335023212,1723753752508,-155.0,0.00010505,2]
[335023213,1723753752536,-4212.99076854,0.00010799,2]
[335023214,1723753752578,-4727.99076854,0.00010799,2]
[335023215,1723753752617,-1161.6784496,0.00010799,2]
[335023216,1723753752646,-1074.78314637,0.00010799,2]
[335023217,1723753752676,-585.47734883,0.000108,2]
[335023229,1723753832491,-2112.46328814,0.00010713,2]
[335023230,1723753832501,-622.29073938,0.00010713,2]
[335023231,1723753832510,-653.7077551,0.00010713,2]
[335023232,1723753832519,-300.0,0.00010798,2]
[335023233,1723753832529,-300.0,0.00010798,2]
[335023234,1723753832538,-1705.52287338,0.000108,2]
[335023235,1723753832557,-356.41997779,0.000108,2]
[335023236,1723753832566,-633.63546487,0.000108,2]
[335023237,1723753832577,-2416.36643513,0.000108,2]
[335023238,1723753832587,-337.3008,0.000108,2]
[335023239,1723753832595,-722.46138348,0.000108,2]
[335023240,1723753832606,-277.53861652,0.000108,2]
[335023241,1723753832616,-137.39085831,0.000108,2]
[335023242,1723753832627,-158.71754169,0.000108,2]
[335023243,1723753832638,-155.0,0.00010852,2]
[335023244,1723753832649,-296.14590493,0.00010861,2]
[335023245,1723753832660,-7.8361774,0.00010861,2]
[335023246,1723753832670,-298.09256283,0.00010861,2]
[335023247,1723753832679,-468.60163879,0.0001088,2]
[335023248,1723753832691,-467.47105878,0.0001088,2]
[335023249,1723753832702,-3082.03617125,0.0001088,2]
[335023250,1723753832713,-899.999998,0.0001088,2]
[335023251,1723753832726,-3152.61260283,0.0001088,2]
[335023252,1723753832753,-152.73476505,0.0001088,2]
[335023253,1723753832763,-150.0,0.00010889,2]
[335023254,1723753832772,-1150.68397478,0.0001089,2]
[335023255,1723753832791,-945.52168804,0.0001089,2]
[335023256,1723753832802,-203.44849149,0.0001089,2]
[335023257,1723753832812,-26556.4543,0.00010898,2]
[335023258,1723753832821,-948.265,0.00010898,2]
[335023259,1723753832831,-1543.6991,0.00010898,2]
[335023260,1723753832840,-7500.0,0.000109,2]
[335023261,1723753832849,-5723.545,0.000109,2]
[335023262,1723753832858,-3000.0,0.000109,2]
[335023263,1723753832867,-152.35222135,0.000109,2]
[335023264,1723753832877,-837.71124843,0.000109,2]
[335023265,1723753832886,-192.46545999,0.000109,2]
[335023266,1723753832895,-3000.0,0.0001094,2]
[335023267,1723753832904,-250.0,0.00010959,2]
[335023268,1723753832913,-4719.10243134,0.0001098,2]
[335023271,1723753838065,-1343.08378447,0.0001098,2]
[335023272,1723753838078,-835.77,0.0001098,2]
[335023273,1723753838125,-1281.35816187,0.0001098,2]
[335023274,1723753838138,-8165.6999999,0.0001098,2]
[335023275,1723753838150,-500.54133244,0.0001098,2]
[335023276,1723753838185,-255.3477856,0.0001098,2]
[335023278,1723753840032,-565.7332809,0.0001098,2]
[335023279,1723753840044,-10908.24907385,0.0001099,3]
[335023280,1723753840091,-701.61531416,0.0001099,3]
[335023281,1723753840151,-1630.38532891,0.0001099,3]
[335023282,1723753840162,-4626.59156538,0.0001099,3]
[335023283,1723753840173,-52416.50408868,0.0001099,3]
[335023284,1723753840215,-785.30334657,0.0001099,3]
[335023285,1723753840226,-753.420545,0.0001099,3]
[335023286,1723753840238,-6128.24517628,0.0001099,3]
[335023287,1723753840254,-1997.505,0.0001099,3]
[335023288,1723753840280,-104533.36882001,0.0001099,3]
[335023289,1723753840290,-1971.7762522,0.00010998,2]
[335023290,1723753840299,-500.0,0.00010999,2]
[335023291,1723753840309,-500.0,0.00010999,2]
[335023292,1723753840319,-500.0,0.00010999,2]
[335023293,1723753840328,-500.0,0.00010999,2]
[335023294,1723753840337,-500.0,0.00010999,2]
[335023296,1723753840347,-500.0,0.00010999,2]
[335023298,1723753840356,-627.46514548,0.00010999,2]
[335023300,1723753840366,-500.0,0.00010999,2]
[335023301,1723753840376,-500.0,0.00010999,2]
[335023302,1723753840386,-500.0,0.00010999,2]
[335023303,1723753840395,-500.0,0.00010999,2]
[335023304,1723753840405,-500.0,0.00010999,2]
[335023305,1723753840415,-500.0,0.00010999,2]
[335023306,1723753840424,-500.0,0.00010999,2]
[335023307,1723753840434,-500.0,0.00010999,2]
[335023308,1723753840443,-500.0,0.00010999,2]
[335023309,1723753840453,-500.0,0.00010999,2]
[335023310,1723753840462,-500.0,0.00010999,2]
[335023311,1723753840472,-500.0,0.00010999,2]
[335023312,1723753840482,-500.0,0.00010999,2]
[335023313,1723753840491,-500.0,0.00010999,2]
[335023314,1723753840500,-500.0,0.00010999,2]
[335023315,1723753840510,-500.0,0.00010999,2]
[335023316,1723753840519,-500.0,0.00010999,2]
[335023318,1723753840529,-500.0,0.00010999,2]
[335023319,1723753840539,-1215.0,0.00011,2]
[335023321,1723753840548,-378621.04409019,0.00011,2]
[335023323,1723753840558,-4343258.02908847,0.00011,2]
[335023662,1723753844108,-28548.48300001,0.00011,2]
[335023679,1723753846369,-0.76861785,0.00011,2]
[335023680,1723753846393,-41197.71998599,0.00011,2]
[335023690,1723753880694,563.081605,0.00025,60]
[335023691,1723753884637,563.081605,0.00025,61]
[335023692,1723753980812,421.60471939,0.0001,2]
[335023693,1723753980841,78.39528061,0.0001,2]
[335023694,1723753981671,500.0,0.0001,2]
[335023695,1723753982436,500.0,0.0001,2]
[335023696,1723753983426,500.0,0.0001,2]
[335023697,1723753983997,500.0,0.0001,2]
[335023698,1723753985915,500.0,0.0001,2]
[335023699,1723753986792,226.85582998,0.0001,2]
[335023700,1723753986827,273.14417002,0.0001,2]
[335023701,1723753987547,500.0,0.0001,2]
[335023702,1723753988398,500.0,0.0001,2]
[335023703,1723753989178,500.0,0.0001,2]
[335023704,1723753989916,500.0,0.0001,2]
[335023705,1723753991079,266.50003032,0.0001,2]
[335023706,1723753991106,233.49996968,0.0001,2]
[335023707,1723753991837,500.0,0.0001,2]
[335023708,1723753993018,500.0,0.0001,2]
[335023709,1723753993790,500.0,0.0001,2]
[335023710,1723753994551,411.76,0.0001,2]
[335023711,1723754002272,420.26650081,0.0001,2]
[335023712,1723754002299,79.73349919,0.0001,2]
[335023713,1723754003033,500.0,0.0001,2]
[335023714,1723754003824,500.0,0.0001,2]
[335023715,1723754059988,500.0,0.0001,2]
[335023716,1723754060753,500.0,0.0001,2]
[335023717,1723754061508,500.0,0.0001,2]
[335023718,1723754068932,205.90595296,0.0001,2]
[335023719,1723754080853,690.29,8.378e-05,2]
[335023720,1723754403129,150.0,8.378e-05,2]
[335023721,1723754542408,155.0,9.943e-05,2]
[335023722,1723754571220,696.11,8.219e-05,2]
[335023723,1723754602916,460.81,9.941e-05,2]
[335023724,1723754644505,827.22,9.955e-05,2]
[335023729,1723754778354,172.82,9.81e-05,2]
[335023735,1723754836644,-1667.0,9.999e-05,2]
[335023736,1723754836669,-77.72404704,0.0001,2]
[335023737,1723754836696,-550.0,0.0001,2]
[335023738,1723754836719,-237.98,0.00010043,2]
[335023739,1723754836742,-250.0,0.00010086,2]
[335023740,1723754836765,-28145.65904328,0.00010086,2]
[335023800,1723755032119,-150.0,0.0001011,2]
[335023801,1723755032130,-1000.0,0.00010147,2]
[335023802,1723755032139,-200.02,0.00010192,2]
[335023803,1723755032149,-1238.9,0.00010229,2]
[335023804,1723755032158,-166.0,0.0001033,2]
[335023805,1723755032167,-23900.0,0.00010331,2]
[335023806,1723755032177,-786.8,0.00010392,2]
[335023807,1723755032186,-696.11,0.00010472,2]
[335023808,1723755032196,-202.98,0.00010523,2]
[335023809,1723755032205,-962.69814273,0.00010713,2]
[335023810,1723755032216,-524.07661507,0.000108,2]
[335023811,1723755032226,-1008.85,0.000108,2]
[335023812,1723755032235,-155.0,0.00010862,2]
[335023813,1723755032245,-150.0,0.00010899,2]
[335023814,1723755032255,-155.0,0.00010899,2]
[335023815,1723755032265,-155.0,0.00010899,2]
[335023816,1723755032274,-2306.6728,0.000109,2]
[335023817,1723755032283,-3000.0,0.000109,2]
[335023818,1723755032292,-7539.40123542,0.000109,2]
[335023819,1723755032302,-343.28830761,0.000109,2]
[335023820,1723755032315,-250.0,0.00010959,2]
[335023821,1723755032325,-169.52892449,0.00010997,2]
[335023822,1723755032335,-500.0,0.00010999,2]
[335023823,1723755032346,-500.0,0.00010999,2]
[335023824,1723755032355,-500.0,0.00010999,2]
[335023825,1723755032368,-500.0,0.00010999,2]
[335023826,1723755032378,-500.0,0.00010999,2]
[335023827,1723755032389,-500.0,0.00010999,2]
[335023828,1723755032399,-419.77565184,0.00010999,2]
[335023829,1723755032409,-500.0,0.00010999,2]
[335023830,1723755032418,-500.0,0.00010999,2]
[335023831,1723755032428,-500.0,0.00010999,2]
[335023832,1723755032438,-500.0,0.00010999,2]
[335023833,1723755032447,-500.0,0.00010999,2]
[335023834,1723755032458,-500.0,0.00010999,2]
[335023835,1723755032469,-500.0,0.00010999,2]
[335023836,1723755032478,-500.0,0.00010999,2]
[335023837,1723755032487,-500.0,0.00010999,2]
[335023838,1723755032496,-500.0,0.00010999,2]
[335023839,1723755032505,-500.0,0.00010999,2]
[335023840,1723755032515,-500.0,0.00010999,2]
[335023841,1723755032525,-500.0,0.00010999,2]
[335023842,1723755032534,-1223.0,0.00011,2]
[335023843,1723755032543,-209609.14827661,0.00011,2]
[335023844,1723755032553,-732209.28068766,0.00011,2]
[335023845,1723755032567,-463.05,0.00011,2]
[335023846,1723755032582,-4259.61070056,0.00011,2]
[335023847,1723755032594,-200037.03382888,0.00011,2]
[335023848,1723755032607,-1138.55742,0.00011,2]
[335023849,1723755032636,-1618.07633989,0.00011,2]
[335023850,1723755032733,-1154.86373683,0.00011,2]
[335023851,1723755038302,-213447.84628566,0.00011,2]
[335023852,1723755038357,-428.73889336,0.00011,2]
[335023853,1723755038368,-783.45476951,0.00011,2]
[335023854,1723755038380,-2227.42494,0.00011,2]
[335023855,1723755038417,-782.42871167,0.00011,2]
[335023856,1723755038429,-6035.8958172,0.00011,2]
[335023857,1723755038440,-11330.14277034,0.00011,2]
[335023858,1723755038475,-450.59372083,0.00011,2]
[335023859,1723755038588,-474527.53857933,0.00011,2]
[335023860,1723755038599,-1203.88782761,0.00011,2]
[335023861,1723755038698,-3444.51359154,0.00011,2]
[335023870,1723755040273,-155.0,0.00010861,2]
[335023871,1723755040283,-192.50656736,0.00011,2]
[335023872,1723755040489,-904.49343264,0.00011,2]